[Event "13th KIIT Festival-A 2022"]
[Site "Bhubaneswar"]
[Date "2022.05.23"]
[Round "2.14"]
[White "Audi Ameya"]
[Black "Ghosh Samriddhaa"]
[Result "1-0"]
[ECO "A13"]
[WhiteElo "2389"]
[BlackElo "1844"]
[Annotator "TA"]
[PlyCount "51"]
[EventDate "2022.05.15"]
[EventType "swiss"]
[EventCountry "IND"]
[SourceTitle "playchess.com"]
[Source "ChessBase"]
[SourceQuality "1"]
[TimeControl "5400+30"]

{[%evp 9,51,8,8,7,10,0,0,0,47,44,62,53,79,87,64,45,56,48,129,128,144,151,152,146,158,155,137,155,181,183,188,164,244,243,237,242,237,247,242,235,970,961,951,952]} 1. c4 {[%emt 0:00:02]} e6 {[%emt 0:00:14]} 2. g3 {[%emt 0:00:05]} d5 {[%emt 0:00:25]} 3. Bg2 {[%emt 0:00:04]} Nf6 {[%emt 0:01:41]} 4. Nf3 {[%emt 0:00:05]} dxc4 {[%emt 0:07:20]} 5. Qa4+ {[%emt 0:01:12]} Bd7 {[%emt 0:03:07]} 6. Qxc4 {[%emt 0:00:03] A13: English Opening: 1...e6.} c5 {[%emt 0:02:20]} 7. Ne5 {[%emt 0:01:12]} Qc8 {[%emt 0:03:48]} 8. Nxd7 {[%emt 0:04:47] The position is equal.} Nbxd7 {[%emt 0:02:42]} (8... Qxd7 $11 9. Nc3 Nc6) 9. O-O {[%emt 0:03:35]} Bd6 {[%emt 0:03:08]} 10. Nc3 {[%emt 0:10:39]} O-O {[%emt 0:07:32] [#]} 11. Qb3 $146 {[%emt 0:01:08]} ({Predecessor:} 11. d3 a6 12. a4 Ne5 13. Qb3 Nc6 14. Bg5 Nd7 15. a5 Qc7 16. Qa4 Rfc8 17. Rfc1 {1-0 (40) Zylka,S (2336)-Sernecki,F (2260) Suwalki 2019}) 11... Nb6 {[%emt 0:09:52]} 12. d3 {[%emt 0:06:47]} Rd8 {[%emt 0:08:39]} 13. Nb5 {[%emt 0:07:15][%cal Ob5a7]} Bb8 {[%emt 0:06:13]} (13... Nbd5 $14) 14. Bg5 $16 {[%emt 0:00:42]} Nbd5 {[%emt 0:03:58]} 15. Rfc1 {[%emt 0:05:44]} a6 {[%emt 0:15:30]} 16. Nc3 {[%emt 0:03:22]} Rd7 {[%emt 0:01:10]} 17. Na4 {[%emt 0:12:33] [#] And now Bxf6 would win.} Ba7 {[%emt 0:01:14]} 18. d4 {[%emt 0:00:16]} Rc7 {[%emt 0:07:25]} 19. dxc5 {[%emt 0:00:05]} h6 {[%emt 0:05:51]} 20. Bd2 {[%emt 0:06:17]} Bxc5 {[%emt 0:02:52]} (20... Nd7 {was worth a try.} 21. e4 N5f6) 21. e4 {[%emt 0:00:26]} ({Don't do} 21. Rxc5 $6 Rxc5 22. Nxc5 Qxc5) 21... Ne7 {[%emt 0:02:35]} 22. Nxc5 {[%emt 0:00:18]} Rxc5 {[%emt 0:00:04]} 23. Rxc5 {[%emt 0:00:06]} Qxc5 {[%emt 0:00:03]} 24. Qxb7 {[%emt 0:00:04]} Ra7 {[%emt 0:01:40] [#]} (24... Re8 25. Rc1 Qd6) 25. Qb8+ $18 {[%emt 0:00:33]} Kh7 {[%emt 0:02:53]} 26. Be3 {[%emt 0:00:15] Weighted Error Value: White=0.03 (flawless) /Black=0.22 (precise)} 1-0

[Event "13th KIIT Festival-A 2022"]
[Site "Bhubaneswar"]
[Date "2022.05.23"]
[Round "2.15"]
[White "Velpula Sarayu"]
[Black "Karthikeyan, P.."]
[Result "1/2-1/2"]
[ECO "B23"]
[WhiteElo "1845"]
[BlackElo "2361"]
[Annotator "TA"]
[PlyCount "64"]
[EventDate "2022.05.15"]
[EventType "swiss"]
[EventCountry "IND"]
[SourceTitle "playchess.com"]
[Source "ChessBase"]
[SourceQuality "1"]
[TimeControl "5400+30"]

{[%evp 9,64,0,0,0,0,0,0,0,0,0,27,24,24,20,4,0,0,0,0,0,0,0,0,0,25,21,26,20,39,4,8,0,85,85,79,75,82,69,81,-23,-11,0,47,9,18,23,28,20,28,25,31,23,20,26,33,31,25]} 1. e4 {[%emt 1:31:00]} c5 {[%emt 1:31:00]} 2. Nc3 {[%emt 0:00:30]} d6 {[%emt 0:00:30]} 3. d4 {[%emt 0:00:30]} cxd4 {[%emt 0:00:30]} 4. Qxd4 {[%emt 0:00:30]} Nc6 {[%emt 0:00:30]} 5. Qd2 {[%emt 0:00:30]} g6 {[%emt 0:00:30]} 6. b3 {[%emt 0:00:30] B23: Closed Sicilian: Lines without g3.} Bh6 {[%emt 0:00:30]} 7. f4 {[%emt 0:00:30]} Nf6 {[%emt 0:00:30]} 8. Bb2 {[%emt 0:00:30] The position is equal.} O-O {[%emt 0:00:30]} 9. O-O-O {[%emt 0:00:30]} e5 {[%emt 0:00:30] The main line 9...e5 scores better than 9...a5.} 10. g3 {[%emt 0:00:30]} Re8 {[%emt 0:00:30]} 11. Kb1 {[%emt 0:00:30]} Nd4 {[%emt 0:00:30]} 12. Qf2 {[%emt 0:00:30]} Bg4 {[%emt 0:00:30]} 13. Re1 {[%emt 0:00:30] [#]} Rc8 $146 {[%emt 0:00:30] [#] ...Qa5 is the strong threat.} ({Predecessor:} 13... Bd7 14. Nf3 Bg7 15. Bg2 Qa5 16. Rd1 Bg4 17. Nxd4 Bxd1 18. Ndb5 Bh5 19. Nxd6 Ng4 {1-0 (35) Mingarro Carceller,S (2309)-Dhananjay,S (2174) Benidorm 2021}) 14. h3 {[%emt 0:00:30]} Bd7 {[%emt 0:00:30]} 15. Nf3 {[%emt 0:00:30]} Bg7 {[%emt 0:00:30]} 16. fxe5 {[%emt 0:00:30]} ({Much worse is} 16. Nxd4 exd4 17. Nd5 Nxe4 18. Rxe4 Rxe4 $19) 16... dxe5 {[%emt 0:00:30]} 17. Bd3 {[%emt 0:00:30]} Bc6 {[%emt 0:00:30]} 18. Rhf1 {[%emt 0:00:30]} Qd7 {[%emt 0:00:30]} 19. g4 {[%emt 0:00:30]} b5 {[%emt 0:00:30]} 20. Nd1 {[%emt 0:00:30][%cal Rf3d4]} Rcd8 {[%emt 0:00:30]} (20... Nxf3 $11 {remains equal.} 21. Qxf3 h6) 21. Nxd4 $16 {[%emt 0:00:30]} exd4 {[%emt 0:00:30]} 22. e5 {[%emt 0:00:30]} Nd5 {[%emt 0:00:30]} 23. Qxd4 {[%emt 0:00:30]} ({Much weaker is} 23. Bxd4 Nb4 24. Bb2 Nxd3 25. cxd3 Qxd3+ 26. Ka1 Qd7 $15) 23... Qb7 {[%emt 0:00:30]} 24. Qg1 {[%emt 0:00:30]} ({White should try} 24. Nc3 $16) 24... Nb4 $1 $11 {[%emt 0:00:30][%mdl 1024] Black has compensation.} 25. Nf2 {[%emt 0:00:30]} Bd5 {[%emt 0:00:30]} (25... Qa6 26. a3 Nxd3 27. Nxd3 $16) (25... Bg2 $1 $11 {was preferrable.}) 26. g5 {[%emt 0:00:30]} Qc6 {[%emt 0:00:30]} ({Don't take} 26... Qa6 27. a3 Nxd3 28. Nxd3 $14) 27. Qh2 {[%emt 0:00:30]} a5 {[%emt 0:00:30]} 28. Qf4 {[%emt 0:00:30]} Nxd3 {[%emt 0:00:30]} 29. Nxd3 {[%emt 0:00:30]} Be6 {[%emt 0:00:30]} 30. Nf2 {[%emt 0:00:30]} a4 {[%emt 0:00:30]} 31. Ne4 {[%emt 0:00:30]} axb3 {[%emt 0:00:30]} 32. axb3 {[%emt 0:00:30]} Bf5 {[%emt 0:00:30] Weighted Error Value: White=0.09 (flawless) /Black=0.11 (very precise)} 1/2-1/2

[Event "13th KIIT Festival-A 2022"]
[Site "Bhubaneswar"]
[Date "2022.05.23"]
[Round "2.16"]
[White "Abdyjapar, Asyl"]
[Black "Jaiveer Mahendru"]
[Result "1-0"]
[ECO "A45"]
[WhiteElo "2346"]
[BlackElo "1832"]
[Annotator "TA"]
[PlyCount "65"]
[EventDate "2022.05.15"]
[EventType "swiss"]
[EventCountry "IND"]
[SourceTitle "playchess.com"]
[Source "ChessBase"]
[SourceQuality "1"]
[TimeControl "5400+30"]

{[%evp 9,65,12,37,12,38,16,14,0,0,8,39,28,59,10,50,51,61,53,84,40,98,114,156,154,150,75,72,73,74,72,111,108,129,109,204,210,229,226,401,409,392,406,398,396,377,263,503,496,546,534,591,577,1243,1201,1383,1210,1679,391]} 1. d4 {[%emt 0:00:15]} Nf6 {[%emt 0:00:06]} 2. Bg5 {[%emt 0:00:15]} d5 {[%emt 0:01:42]} 3. e3 {[%emt 0:01:37]} Ne4 {[%emt 0:02:11]} 4. Bf4 {[%emt 0:00:11]} c5 {[%emt 0:01:29]} 5. Nd2 {[%emt 0:03:38]} Bf5 {[%emt 0:06:05]} 6. Ngf3 {[%emt 0:08:41] A45: Trompowsky Attack.} (6. Bxb8 $5 Rxb8 7. Bb5+ Bd7 8. Bxd7+ Qxd7 9. Nxe4 dxe4 10. dxc5 $11) 6... e6 {[%emt 0:03:52]} 7. Nxe4 {[%emt 0:07:09]} Bxe4 {[%emt 0:01:48]} 8. c3 {[%emt 0:05:15] The position is equal.} Nd7 {[%emt 0:04:14] [#]} 9. Qb3 $146 {[%emt 0:06:39]} ({Predecessor:} 9. Nd2 Bg6 10. Be2 Be7 11. O-O O-O 12. Nf3 Qb6 13. Qb3 c4 14. Qxb6 axb6 15. a3 {0-1 (51) Bendayan Claros,A (2188)-Marcziter,D (2243) Chess.com INT 2021}) 9... Qb6 {[%emt 0:05:07]} 10. Qxb6 {[%emt 0:04:54]} axb6 {[%emt 0:00:43]} 11. Nd2 {[%emt 0:00:33]} (11. Bb5 $14 {is more appropriate.}) 11... Bg6 {[%emt 0:00:25]} 12. Bb5 {[%emt 0:00:10]} Be7 {[%emt 0:06:00]} 13. O-O {[%emt 0:00:51]} Bf6 {[%emt 0:02:48]} 14. Rfe1 {[%emt 0:03:21]} Kd8 {[%emt 0:03:49]} (14... Ke7 $14) 15. a4 $16 {[%emt 0:03:01]} e5 {[%emt 0:08:02]} 16. dxe5 {[%emt 0:02:04] White is more active.} Bxe5 {[%emt 0:00:31]} 17. Bxe5 {[%emt 0:03:13]} (17. Nf1 $142) 17... Nxe5 {[%emt 0:00:02]} 18. e4 {[%emt 0:00:21]} dxe4 {[%emt 0:01:00]} 19. Nxe4 {[%emt 0:00:13][%cal Bd2e4,Be4g5,Bg5e6][%mdl 32]} f6 {[%emt 0:17:41] [#]} 20. Ng5 $1 {[%emt 0:10:14][%mdl 512]} Kc8 {[%emt 0:11:16]} (20... Rg8 21. f4) 21. Ne6 {[%emt 0:02:51]} Bf7 {[%emt 0:07:01]} (21... Rg8 $16) 22. Nxg7 $18 {[%emt 0:01:31]} Rg8 {[%emt 0:00:01]} 23. f4 {[%emt 0:01:48]} Nf3+ {[%emt 0:06:06]} (23... Rxg7 {was necessary.} 24. fxe5 fxe5) 24. gxf3 {[%emt 0:00:05]} Rxg7+ {[%emt 0:00:06]} 25. Kf2 {[%emt 0:00:10] [#] Black must now prevent Re7.} Rg8 {[%emt 0:04:19]} 26. Re7 {[%emt 0:01:27]} Bb3 {[%emt 0:00:23]} 27. Rg1 {[%emt 0:04:20]} Kb8 $2 {[%emt 0:01:01]} (27... Rxg1 28. Kxg1 Ra7 29. Bd7+ (29. Rxh7 Bxa4 30. Bxa4 Rxa4 $18) 29... Kd8 30. Rxh7 Bxa4) 28. Rxh7 {[%emt 0:01:14] White is clearly winning.} Ka7 {[%emt 0:00:40]} 29. Rxg8 {[%emt 0:00:21]} Bxg8 {[%emt 0:00:40]} 30. Rh8 {[%emt 0:00:09]} f5 {[%emt 0:01:16]} 31. Kg3 {[%emt 0:00:18]} c4 {[%emt 0:00:32]} 32. Kh4 {[%emt 0:00:40]} Bh7 {[%emt 0:00:09]} 33. Rxa8+ {[%emt 0:00:17] Weighted Error Value: White=0.17 (very precise) /Black=0.43} 1-0

[Event "13th KIIT Festival-A 2022"]
[Site "Bhubaneswar"]
[Date "2022.05.23"]
[Round "2.17"]
[White "Tiwari Shivansh"]
[Black "Rohith Krishna S"]
[Result "0-1"]
[ECO "D00"]
[WhiteElo "1838"]
[BlackElo "2337"]
[Annotator "TA"]
[PlyCount "98"]
[EventDate "2022.05.15"]
[EventType "swiss"]
[EventCountry "IND"]
[SourceTitle "playchess.com"]
[Source "ChessBase"]
[SourceQuality "1"]
[TimeControl "5400+30"]

{[%evp 9,98,15,22,-5,6,-2,5,-3,16,-4,29,3,0,0,8,-26,-18,-28,-36,-12,-6,-20,-12,-22,0,0,14,14,14,0,14,14,14,14,14,14,14,14,12,4,31,4,8,0,0,0,0,-3,-5,-7,0,0,0,-110,-101,-271,-258,-232,-256,-284,-249,-250,-236,-433,-398,-452,-429,-641,-603,-711,-702,-12834,-12834,-12832,-11890,-1410,-1095,-12839,-12834,-12835,-12835,-12835,-12835,-3471,-3192,-12845,-12845,-12846,-12846,-12847,-12847]} 1. d4 {[%emt 0:00:12]} Nf6 {[%emt 0:00:17]} 2. Bg5 {[%emt 0:00:27]} d5 {[%emt 0:01:46]} 3. Bxf6 {[%emt 0:00:15]} exf6 {[%emt 0:00:07]} 4. e3 {[%emt 0:00:10]} b6 {[%emt 0:03:52]} 5. Bd3 {[%emt 0:01:56]} Bb7 {[%emt 0:03:58] [#]} 6. Nd2 $146 {[%emt 0:01:19] D00: 1 d4 d5: Unusual lines.} ({Predecessor:} 6. Qf3 g6 7. Ne2 f5 8. Nf4 Qd6 9. O-O Nd7 10. c4 Nf6 11. Nc3 O-O-O 12. Nfxd5 Nxd5 13. cxd5 Bxd5 14. Nxd5 Qxd5 {½-½ (48) Dumitrescu,D (2405)-Buenermann,V (2295) Pardubice 1998}) 6... c5 {[%emt 0:06:26]} 7. Qf3 {[%emt 0:03:30]} g6 {[%emt 0:10:43]} 8. Ne2 {[%emt 0:02:19] The position is equal.} f5 {[%emt 0:02:20]} 9. c3 {[%emt 0:05:25]} Bh6 {[%emt 0:18:01]} 10. h4 {[%emt 0:13:05]} Nd7 {[%emt 0:06:36]} 11. h5 {[%emt 0:10:19]} Nf6 {[%emt 0:01:00] Prevents g4.} 12. hxg6 {[%emt 0:04:28]} hxg6 {[%emt 0:00:05]} 13. O-O-O {[%emt 0:16:42][%cal Of3f4]} Qe7 {[%emt 0:07:48]} 14. Rh3 {[%emt 0:05:55]} Bg7 {[%emt 0:02:34]} 15. Rxh8+ {[%emt 0:04:32]} Bxh8 {[%emt 0:00:09]} 16. Rh1 {[%emt 0:27:56]} Bg7 {[%emt 0:00:15]} 17. Qf4 {[%emt 0:00:00]} Ne4 {[%emt 0:03:15]} 18. g4 {[%emt 0:00:00]} fxg4 {[%emt 0:02:04]} 19. Nxe4 {[%emt 0:00:00]} dxe4 {[%emt 0:00:07]} 20. Bb5+ {[%emt 0:00:00][%cal Bd3b5,Bb5a4,Ba4c2][%mdl 32]} Kf8 {[%emt 0:01:05]} 21. Qxg4 {[%emt 0:00:00]} Bd5 {[%emt 0:03:55][%cal Bb7d5,Bd5e6,Be6c4][%mdl 32]} 22. Kb1 {[%emt 0:00:00]} a6 {[%emt 0:01:22]} 23. Ba4 {[%emt 0:00:00]} Be6 {[%emt 0:00:16] A strong pair of Bishops.} 24. Qg2 {[%emt 0:00:00]} cxd4 {[%emt 0:02:34]} 25. Nxd4 {[%emt 0:00:00]} (25. cxd4 $5 {[%cal Ra4c6]} Rc8 26. Nf4 $11) 25... Bc4 {[%emt 0:01:33]} 26. Bc2 {[%emt 0:00:00]} Re8 {[%emt 0:00:24]} 27. Rd1 {[%emt 0:00:00]} b5 {[%emt 0:01:09][%cal Bb6b5,Bb5b4][%mdl 32]} 28. Bb3 {[%emt 0:00:00]} Bd3+ {[%emt 0:03:50]} 29. Bc2 {[%emt 0:00:00]} Bxc2+ {[%emt 0:02:12]} 30. Nxc2 {[%emt 0:00:23]} a5 {[%emt 0:00:38]} 31. Qg4 {[%emt 0:03:20] [#]} (31. a3 $11 {remains equal.}) 31... b4 $1 $17 {[%emt 0:01:18]} 32. Nd4 $2 {[%emt 0:02:55] Loses the game.} (32. cxb4 $17 {might work better.} Qf6 33. Nd4) 32... bxc3 $19 {[%emt 0:00:13] aiming for ...Rb8.} 33. Qe2 {[%emt 0:00:53]} cxb2 {[%emt 0:01:05]} 34. Qxb2 {[%emt 0:00:49]} Kg8 {[%emt 0:14:33]} 35. Qb5 {[%emt 0:00:34]} Ra8 {[%emt 0:00:00]} 36. Rc1 $2 {[%emt 0:00:30]} (36. a4) 36... Qd8 {[%emt 0:00:00]} 37. Nc6 {[%emt 0:00:33]} Qf6 {[%emt 0:00:00] Threatens to win with ...Qa1+. Black is clearly winning.} 38. Nd4 {[%emt 0:00:23]} (38. Qe2 $142) 38... Qxf2 {[%emt 0:00:00]} 39. Qb7 {[%emt 0:00:12]} Rf8 {[%emt 0:00:00]} 40. Qb3 {[%emt 0:00:34]} Bxd4 {[%emt 0:00:00]} 41. exd4 {[%emt 0:00:08]} Qxd4 {[%emt 0:00:00][%mdl 4096] Endgame KQR-KQR} 42. Rc6 {[%emt 0:00:42]} Kg7 {[%emt 0:00:00] [#] And now ...e3 would win.} 43. Qc3 {[%emt 0:00:29]} Qxc3 {[%emt 0:00:00]} 44. Rxc3 {[%emt 0:00:05] KR-KR} f5 {[%emt 0:00:00][%cal Bf7f5,Bf5f4,Bf4f3][%mdl 32]} 45. Kc1 {[%emt 0:00:07]} f4 {[%emt 0:00:00]} 46. Kd2 {[%emt 0:00:10]} e3+ {[%emt 0:00:00][%cal Be4e3,Be3e2][%mdl 32]} 47. Ke2 {[%emt 0:00:06]} f3+ {[%emt 0:00:00]} 48. Kf1 {[%emt 0:00:23]} e2+ {[%emt 0:00:00]} 49. Kf2 {[%emt 0:00:22]} Re8 {[%emt 0:07:30] Weighted Error Value: White=0.68/Black=0.04 (flawless)} 0-1

[Event "13th KIIT Festival-A 2022"]
[Site "Bhubaneswar"]
[Date "2022.05.23"]
[Round "2.18"]
[White "Konguvel, Ponnuswamy"]
[Black "Bhattacharya, Niladri Shekhar"]
[Result "1-0"]
[ECO "B17"]
[WhiteElo "2331"]
[BlackElo "1816"]
[Annotator "TA"]
[PlyCount "115"]
[EventDate "2022.05.15"]
[EventType "swiss"]
[EventCountry "IND"]
[SourceTitle "playchess.com"]
[Source "ChessBase"]
[SourceQuality "1"]
[TimeControl "5400+30"]

{[%evp 16,115,-10,-10,22,36,39,22,85,76,137,110,98,75,77,34,41,44,35,20,29,14,23,0,8,0,0,0,31,-4,-6,-11,-12,-4,17,21,15,24,21,12,24,20,16,21,25,17,32,21,22,14,14,19,25,0,0,0,4,0,12,14,24,21,29,14,101,100,122,122,134,0,129,125,348,332,316,291,245,221,357,357,404,8,8,8,8,8,137,137,29964,29965,29969,5117,29983,29984,29983,29984,29984,29985,29985,29986,29985,29986]} 1. e4 {[%emt 0:00:03]} c6 {[%emt 0:01:33]} 2. d4 {[%emt 0:00:29]} d5 {[%emt 0:00:02]} 3. Nc3 {[%emt 0:00:21][%cal Bb1c3,Bc3e4,Be4g5,Bg5f3,Bf3e5][%mdl 32]} dxe4 {[%emt 0:01:33]} 4. Nxe4 {[%emt 0:00:05]} Nd7 {[%emt 1:29:22]} 5. Ng5 {[%emt 0:12:46]} Ngf6 {[%emt 0:00:00]} 6. Bc4 {[%emt 0:01:37]} e6 {[%emt 0:00:00]} 7. Qe2 {[%emt 0:00:07]} Nb6 {[%emt 0:00:00]} 8. Bd3 {[%emt 0:00:39]} h6 {[%emt 0:00:00]} 9. N5f3 {[%emt 0:00:27]} Bd6 {[%emt 0:00:00] B17: Caro-Kann: Modern Line (4...Nd7).} 10. Ne5 {[%emt 0:01:56]} Qc7 {[%emt 0:00:00]} 11. Ngf3 {[%emt 0:00:15]} Bd7 {[%emt 0:00:00]} (11... Nbd7 $11 {remains equal.}) 12. O-O $16 {[%emt 0:08:02]} O-O {[%emt 0:00:00] [#]} (12... c5 $142) 13. c4 $1 {[%emt 0:04:25] Hoping for c5. White is more active.} c5 {[%emt 0:00:00]} 14. dxc5 {[%emt 0:07:53] [#]} Bxc5 $146 {[%emt 0:00:00]} ({Predecessor:} 14... Qxc5 15. Be3 Qc7 16. c5 Bxe5 17. cxb6 axb6 18. Rfc1 Bc6 19. Nxe5 Qxe5 20. Bxb6 Qxe2 21. Bxe2 {1-0 (46) Schuermans,R (2127)-Persoons,B (1751) Antwerp 2013}) 15. b3 {[%emt 0:05:35]} Rfd8 {[%emt 0:00:00]} 16. Bb2 {[%emt 0:00:09]} Be8 {[%emt 0:00:00]} 17. Rad1 {[%emt 0:00:14]} Nbd7 {[%emt 0:00:00]} 18. Nxd7 {[%emt 0:11:09]} Nxd7 {[%emt 0:00:00]} 19. Qe4 {[%emt 0:01:54] Black must now prevent Qh7+.} Nf8 {[%emt 0:00:00] Against Qh7+} 20. Bc2 {[%emt 0:13:50]} f6 {[%emt 0:00:00]} 21. Qg4 {[%emt 0:02:58] And now Bxf6 would win.} Qf7 {[%emt 0:00:00]} 22. Nd4 {[%emt 0:03:28]} Qh5 {[%emt 0:00:00]} 23. h3 {[%emt 0:01:13]} Qxg4 {[%emt 0:00:00]} 24. hxg4 {[%emt 0:00:02]} Bxd4 {[%emt 0:00:00]} 25. Bxd4 {[%emt 0:00:40]} Bg6 {[%emt 0:00:00]} 26. Bxg6 {[%emt 0:06:31]} Nxg6 {[%emt 0:00:00]} 27. Be3 {[%emt 0:00:06]} Ne5 {[%emt 0:00:00]} 28. f3 {[%emt 0:00:06]} Kf7 {[%emt 0:00:00]} 29. Kf2 {[%emt 0:00:16]} b6 {[%emt 0:00:00]} 30. Ke2 {[%emt 0:00:14]} Ke7 {[%emt 0:00:00]} 31. Bc1 {[%emt 0:06:31]} Nc6 {[%emt 0:00:00]} 32. Ba3+ {[%emt 0:00:36]} Kf7 {[%emt 0:00:00]} 33. Bb2 {[%emt 0:02:03]} e5 {[%emt 0:00:00]} 34. Bc3 {[%emt 0:00:08]} Ke6 {[%emt 0:01:02]} 35. Ke3 {[%emt 0:00:06]} a6 {[%emt 0:02:17]} 36. Ke4 {[%emt 0:06:12]} Rxd1 {[%emt 0:02:16]} 37. Rxd1 {[%emt 0:00:01]} Rd8 {[%emt 0:00:01]} 38. Rxd8 {[%emt 0:02:02]} (38. Rd5 {feels hotter.} Rh8 39. c5 bxc5 40. Rxc5 Rc8 41. Bd2) 38... Nxd8 $11 {[%emt 0:00:01][%mdl 4096] Endgame KB-KN} 39. Bd2 {[%emt 0:00:01]} Nf7 {[%emt 0:03:03]} (39... Nb7 $1 $11) 40. Be3 {[%emt 0:00:08]} Nd6+ {[%emt 0:00:18]} 41. Kd3 {[%emt 0:00:03]} Nc8 {[%emt 0:00:14]} 42. b4 {[%emt 0:00:40]} (42. a3 $16) 42... Kd7 {[%emt 0:01:55]} (42... b5 $1 $11) 43. a4 {[%emt 0:00:58][%cal Ba2a4,Ba4b5][%mdl 32]} Kc6 $2 {[%emt 0:02:31]} (43... Kc7 $16) 44. b5+ $18 {[%emt 0:02:16]} axb5 {[%emt 0:00:19]} 45. axb5+ {[%emt 0:00:24]} ({Less strong is} 45. cxb5+ Kd7 $16) 45... Kd6 {[%emt 0:00:49]} 46. Ke4 {[%emt 0:00:29]} g6 {[%emt 0:00:49]} (46... Ke6 $142 47. c5 g6 48. cxb6 (48. Bxh6 bxc5 49. Kd3 Nb6 $11) 48... Nd6+ 49. Kd3 h5 50. gxh5 gxh5) 47. Bxh6 {[%emt 0:01:30]} Kc5 {[%emt 0:00:03]} 48. Bf8+ {[%emt 0:00:25]} (48. g5 $18 fxg5 49. Kd3) 48... Kxc4 $11 {[%emt 0:00:12]} 49. g5 {[%emt 0:00:03]} fxg5 {[%emt 0:00:33]} 50. Kxe5 {[%emt 0:00:05] Kf6 is the strong threat.} Kd3 {[%emt 0:02:06]} (50... Na7 $1 $11 {keeps the balance.}) 51. Kf6 $16 {[%emt 0:01:21][%csl LRg5,LRg6]} Ke2 $2 {[%emt 0:02:22][%mdl 8192] [#]} (51... Na7 $16) 52. Kxg5 {[%emt 0:00:20]} Kf2 {[%emt 0:00:04]} 53. Kxg6 {[%emt 0:00:02] f4 would kill now.} Kxg2 {[%emt 0:00:02]} 54. f4 {[%emt 0:00:05][%cal Bf3f4,Bf4f5,Bf5f6,Bf6f7][%mdl 32] White mates.} Na7 {[%emt 0:00:01]} 55. f5 {[%emt 0:01:23]} Nxb5 {[%emt 0:00:02]} 56. f6 {[%emt 0:00:07]} Nd4 {[%emt 0:01:36]} 57. f7 {[%emt 0:00:40]} Kf3 {[%emt 0:03:22]} 58. Bd6 {[%emt 0:00:34] Weighted Error Value: White=0.26 (precise) /Black=0.54} 1-0